[Event "*** Titled Tuesday Blitz"]
[Site "Chess.com"]
[Date "2021.03.30"]
[Round "2"]
[White "EvgenyT"]
[Black "Kretov_Evgenij"]
[Result "1-0"]
[WhiteElo "2923"]
[BlackElo "2578"]
[TimeControl "180+1"]
[EndTime "10:18:04 PDT"]
[Termination "EvgenyT won by resignation"]

1. c4 {[%clk 0:03:00.9]} 1... Nf6 {[%clk 0:02:59.6]} 2. Nc3 {[%clk 0:03:01.1]}
2... c5 {[%clk 0:02:59.8]} 3. g3 {[%clk 0:03:00.3]} 3... e6 {[%clk 0:02:58.8]}
4. Nf3 {[%clk 0:03:00]} 4... b6 {[%clk 0:02:58.8]} 5. Bg2 {[%clk 0:02:59.9]}
5... Bb7 {[%clk 0:02:59.5]} 6. O-O {[%clk 0:02:59.8]} 6... Be7 {[%clk
0:02:59.8]} 7. d4 {[%clk 0:02:52.3]} 7... cxd4 {[%clk 0:02:59.5]} 8. Qxd4 {[%clk
0:02:52.8]} 8... d6 {[%clk 0:02:59.6]} 9. Bg5 {[%clk 0:02:52.2]} 9... a6 {[%clk
0:02:58.3]} 10. Rfd1 {[%clk 0:02:51]} 10... Nbd7 {[%clk 0:02:57.6]} 11. Qd2
{[%clk 0:02:51.5]} 11... O-O {[%clk 0:02:51.1]} 12. Bf4 {[%clk 0:02:47.5]} 12...
Ne8 {[%clk 0:02:49.8]} 13. Rac1 {[%clk 0:02:46.9]} 13... Rc8 {[%clk 0:02:47]}
14. b3 {[%clk 0:02:44]} 14... Qc7 {[%clk 0:02:45.8]} 15. Qe3 {[%clk 0:02:30.9]}
15... Qb8 {[%clk 0:02:23.4]} 16. Bg5 {[%clk 0:02:04.8]} 16... Nef6 {[%clk
0:02:16.9]} 17. Bxf6 {[%clk 0:01:22.6]} 17... Nxf6 {[%clk 0:02:12.2]} 18. Qxb6
{[%clk 0:01:18.8]} 18... d5 {[%clk 0:01:52.4]} 19. cxd5 {[%clk 0:01:12.3]} 19...
Rxc3 {[%clk 0:01:36.2]} 20. Rxc3 {[%clk 0:01:10.6]} 20... Nxd5 {[%clk 0:01:36]}
21. Rxd5 {[%clk 0:01:10.3]} 21... Bxd5 {[%clk 0:01:36]} 22. Qxb8 {[%clk
0:01:09.3]} 22... Rxb8 {[%clk 0:01:36.2]} 23. Nd2 {[%clk 0:01:00]} 23... Bb4
{[%clk 0:01:28.3]} 24. Rc2 {[%clk 0:00:58.9]} 24... Bxg2 {[%clk 0:01:25.8]} 25.
Kxg2 {[%clk 0:00:58.7]} 25... Rd8 {[%clk 0:01:25.4]} 26. Nc4 {[%clk 0:00:55.9]}
26... Kf8 {[%clk 0:01:18.5]} 27. Ne5 {[%clk 0:00:55.6]} 27... Bd6 {[%clk
0:01:14]} 28. Nd3 {[%clk 0:00:54.1]} 28... Ke7 {[%clk 0:01:12.9]} 29. Rc6 {[%clk
0:00:53.7]} 29... Ra8 {[%clk 0:01:12.1]} 30. Kf3 {[%clk 0:00:52.7]} 30... Kd7
{[%clk 0:01:11.2]} 31. Rc4 {[%clk 0:00:52.5]} 31... Rb8 {[%clk 0:01:01]} 32. Ra4
{[%clk 0:00:50.6]} 32... Rb6 {[%clk 0:01:00.3]} 33. Ra5 {[%clk 0:00:48.6]} 33...
Rc6 {[%clk 0:00:59.1]} 34. h4 {[%clk 0:00:47.7]} 34... Kc7 {[%clk 0:00:54]} 35.
h5 {[%clk 0:00:46.8]} 35... Kb6 {[%clk 0:00:53.4]} 36. Ra4 {[%clk 0:00:46.8]}
36... Rc2 {[%clk 0:00:52.7]} 37. Nb4 {[%clk 0:00:24.6]} 37... Rc3+ {[%clk
0:00:52.4]} 38. Nd3 {[%clk 0:00:24.5]} 38... Rc2 {[%clk 0:00:52.5]} 39. g4
{[%clk 0:00:24.7]} 39... e5 {[%clk 0:00:48]} 40. Ke3 {[%clk 0:00:23]} 40... g6
{[%clk 0:00:44.2]} 41. hxg6 {[%clk 0:00:20.8]} 41... hxg6 {[%clk 0:00:44.1]} 42.
g5 {[%clk 0:00:20.7]} 42... Be7 {[%clk 0:00:42]} 43. Nxe5 {[%clk 0:00:19.8]}
43... Bxg5+ {[%clk 0:00:42.3]} 44. f4 {[%clk 0:00:20.1]} 44... Bf6 {[%clk
0:00:34.8]} 45. Nxf7 {[%clk 0:00:19.8]} 45... Rc7 {[%clk 0:00:25.2]} 46. Nd6
{[%clk 0:00:18.3]} 46... g5 {[%clk 0:00:23.2]} 47. Nc4+ {[%clk 0:00:13.9]} 47...
Ka7 {[%clk 0:00:22.6]} 48. fxg5 {[%clk 0:00:13.4]} 48... Bxg5+ {[%clk
0:00:22.8]} 49. Kd3 {[%clk 0:00:13.7]} 49... Rd7+ {[%clk 0:00:21.7]} 50. Kc2
{[%clk 0:00:12.7]} 50... Re7 {[%clk 0:00:20.7]} 51. Kd3 {[%clk 0:00:11.8]} 51...
Rd7+ {[%clk 0:00:20.9]} 52. Ke4 {[%clk 0:00:11.5]} 52... Re7+ {[%clk 0:00:21.2]}
53. Ne5 {[%clk 0:00:10.3]} 53... Bf6 {[%clk 0:00:21]} 54. Ra5 {[%clk 0:00:10.6]}
54... Kb6 {[%clk 0:00:21.3]} 55. Rd5 {[%clk 0:00:10.4]} 55... Rc7 {[%clk
0:00:20.6]} 56. Rd6+ {[%clk 0:00:10.3]} 1-0

[Event "*** Titled Tuesday Blitz"]
[Site "Chess.com"]
[Date "2021.03.30"]
[Round "2"]
[White "sorrm8thatscheckm8"]
[Black "Zmeeed63"]
[Result "0-1"]
[WhiteElo "2614"]
[BlackElo "2339"]
[TimeControl "180+1"]
[EndTime "10:18:07 PDT"]
[Termination "Zmeeed63 won on time"]

1. d4 {[%clk 0:03:00.9]} 1... d5 {[%clk 0:02:58]} 2. c4 {[%clk 0:02:59.8]} 2...
e6 {[%clk 0:02:58.1]} 3. Nc3 {[%clk 0:02:59.3]} 3... c6 {[%clk 0:02:57.5]} 4.
Nf3 {[%clk 0:02:58.8]} 4... dxc4 {[%clk 0:02:51.8]} 5. a4 {[%clk 0:02:58.3]}
5... Bb4 {[%clk 0:02:50]} 6. e3 {[%clk 0:02:57.8]} 6... c5 {[%clk 0:02:33.7]} 7.
Bxc4 {[%clk 0:02:55.6]} 7... cxd4 {[%clk 0:02:29.2]} 8. Nxd4 {[%clk 0:02:55.5]}
8... Nf6 {[%clk 0:02:27.1]} 9. O-O {[%clk 0:02:55.3]} 9... O-O {[%clk 0:02:24]}
10. Ndb5 {[%clk 0:02:53.3]} 10... Nc6 {[%clk 0:02:20.9]} 11. Qe2 {[%clk
0:02:45.7]} 11... a6 {[%clk 0:02:14.7]} 12. Rd1 {[%clk 0:02:42.7]} 12... Bd7
{[%clk 0:02:10.6]} 13. Nd6 {[%clk 0:02:37.8]} 13... Qe7 {[%clk 0:01:48]} 14.
Nde4 {[%clk 0:02:30.1]} 14... Nxe4 {[%clk 0:01:46.2]} 15. Nxe4 {[%clk
0:02:30.6]} 15... Rfd8 {[%clk 0:01:43.1]} 16. Bd2 {[%clk 0:02:28.9]} 16... Na5
{[%clk 0:01:39.5]} 17. Bxb4 {[%clk 0:02:15.4]} 17... Qxb4 {[%clk 0:01:40.4]} 18.
Bd3 {[%clk 0:02:04.8]} 18... Rac8 {[%clk 0:01:29.4]} 19. Nd6 {[%clk 0:01:33.9]}
19... Rc5 {[%clk 0:01:15.3]} 20. Qf3 {[%clk 0:01:25.9]} 20... Be8 {[%clk
0:00:57.7]} 21. Nxf7 {[%clk 0:01:08.1]} 21... Rd7 {[%clk 0:00:29.1]} 22. Bxh7+
{[%clk 0:00:39.3]} 22... Kxh7 {[%clk 0:00:25]} 23. Rxd7 {[%clk 0:00:38.8]} 23...
Bxd7 {[%clk 0:00:21.4]} 24. Rd1 {[%clk 0:00:38.6]} 24... Be8 {[%clk 0:00:18.7]}
25. Nd6 {[%clk 0:00:37.4]} 25... Bh5 {[%clk 0:00:16.3]} 26. Qh3 {[%clk
0:00:30.8]} 26... Rd5 {[%clk 0:00:16.2]} 27. Rf1 {[%clk 0:00:26.6]} 27... Qxd6
{[%clk 0:00:13.3]} 28. g4 {[%clk 0:00:23.2]} 28... g6 {[%clk 0:00:07.2]} 29.
gxh5 {[%clk 0:00:19.8]} 29... Rxh5 {[%clk 0:00:08.1]} 30. Qg2 {[%clk 0:00:18.9]}
30... Nc6 {[%clk 0:00:07.9]} 31. f4 {[%clk 0:00:16.7]} 31... Qd5 {[%clk
0:00:07.4]} 32. e4 {[%clk 0:00:15.5]} 32... Qd4+ {[%clk 0:00:06.9]} 33. Kh1
{[%clk 0:00:16]} 33... Qxa4 {[%clk 0:00:06.5]} 34. Rg1 {[%clk 0:00:16.1]} 34...
Rh6 {[%clk 0:00:04.6]} 35. f5 {[%clk 0:00:08.6]} 35... exf5 {[%clk 0:00:05]} 36.
exf5 {[%clk 0:00:08.7]} 36... Qd4 {[%clk 0:00:04.7]} 37. fxg6+ {[%clk
0:00:08.3]} 37... Kg7 {[%clk 0:00:05.2]} 38. Qg5 {[%clk 0:00:06.7]} 38... Qe5
{[%clk 0:00:03.7]} 39. Qd2 {[%clk 0:00:04.3]} 39... Rxg6 {[%clk 0:00:02.7]} 40.
Qd7+ {[%clk 0:00:04.5]} 40... Kh6 {[%clk 0:00:02.7]} 41. Qh3+ {[%clk 0:00:03.9]}
41... Kg7 {[%clk 0:00:03.3]} 42. Qd7+ {[%clk 0:00:03.8]} 42... Kg8 {[%clk
0:00:03.6]} 43. Qc8+ {[%clk 0:00:03.6]} 43... Kf7 {[%clk 0:00:03.7]} 44. Qd7+
{[%clk 0:00:03.9]} 44... Kf6 {[%clk 0:00:04.6]} 45. Qg7+ {[%clk 0:00:01.3]}
45... Kxg7 {[%clk 0:00:04.7]} 46. Rf1 {[%clk 0:00:02.2]} 46... Qe4+ {[%clk
0:00:04.8]} 0-1

[Event "*** Titled Tuesday Blitz"]
[Site "Chess.com"]
[Date "2021.03.30"]
[Round "2"]
[White "chenrip"]
[Black "AEMEffi"]
[Result "1-0"]
[WhiteElo "2469"]
[BlackElo "2265"]
[TimeControl "180+1"]
[EndTime "10:18:08 PDT"]
[Termination "chenrip won on time"]

1. e4 {[%clk 0:03:00.9]} 1... e5 {[%clk 0:02:59.5]} 2. Nf3 {[%clk 0:03:00.9]}
2... Nc6 {[%clk 0:02:58.9]} 3. d4 {[%clk 0:02:59]} 3... exd4 {[%clk 0:02:58.1]}
4. Nxd4 {[%clk 0:02:59.4]} 4... Nf6 {[%clk 0:02:57.2]} 5. Nxc6 {[%clk
0:02:59.1]} 5... bxc6 {[%clk 0:02:54.2]} 6. Qe2 {[%clk 0:02:59.4]} 6... Qe7
{[%clk 0:02:34.6]} 7. Nc3 {[%clk 0:02:55.6]} 7... d6 {[%clk 0:02:29.2]} 8. Bg5
{[%clk 0:02:53.4]} 8... h6 {[%clk 0:02:27.7]} 9. Bh4 {[%clk 0:02:52.9]} 9... g5
{[%clk 0:02:27.2]} 10. Bg3 {[%clk 0:02:52.7]} 10... Bg7 {[%clk 0:02:27.9]} 11.
O-O-O {[%clk 0:02:50.3]} 11... O-O {[%clk 0:02:11.9]} 12. h4 {[%clk 0:02:47.9]}
12... g4 {[%clk 0:02:10.8]} 13. Qc4 {[%clk 0:02:45]} 13... Nh5 {[%clk 0:02:02]}
14. Qxc6 {[%clk 0:02:31.9]} 14... Nxg3 {[%clk 0:01:58.1]} 15. fxg3 {[%clk
0:02:32.8]} 15... Bxc3 {[%clk 0:01:54.6]} 16. Qxc3 {[%clk 0:02:30.8]} 16... Qxe4
{[%clk 0:01:53.2]} 17. Bc4 {[%clk 0:02:21.3]} 17... Be6 {[%clk 0:01:42.3]} 18.
Rhe1 {[%clk 0:02:13]} 18... Qxc4 {[%clk 0:01:41.1]} 19. Qxc4 {[%clk 0:01:51.6]}
19... Bxc4 {[%clk 0:01:40.5]} 20. Re7 {[%clk 0:01:52.1]} 20... Rac8 {[%clk
0:01:33]} 21. Re4 {[%clk 0:01:32.3]} 21... Be6 {[%clk 0:01:31.5]} 22. Ra4 {[%clk
0:01:29.4]} 22... Ra8 {[%clk 0:01:28.1]} 23. Rd3 {[%clk 0:01:28.6]} 23... Kg7
{[%clk 0:01:25.4]} 24. Rda3 {[%clk 0:01:28.9]} 24... f5 {[%clk 0:01:08]} 25.
Rxa7 {[%clk 0:01:27.9]} 25... Rxa7 {[%clk 0:01:06.9]} 26. Rxa7 {[%clk
0:01:28.2]} 26... Rf7 {[%clk 0:01:05.7]} 27. a4 {[%clk 0:01:26.8]} 27... c5
{[%clk 0:01:05.5]} 28. Ra6 {[%clk 0:01:24]} 28... Rd7 {[%clk 0:01:05.1]} 29. Kd2
{[%clk 0:01:18.3]} 29... Kf6 {[%clk 0:01:05.3]} 30. Ke3 {[%clk 0:01:18.2]} 30...
Ke5 {[%clk 0:01:05.7]} 31. a5 {[%clk 0:01:17.2]} 31... Bd5 {[%clk 0:01:04.7]}
32. b3 {[%clk 0:01:08.5]} 32... Bxg2 {[%clk 0:00:57.1]} 33. Rb6 {[%clk
0:01:07.9]} 33... Ra7 {[%clk 0:00:56.4]} 34. a6 {[%clk 0:01:02]} 34... h5 {[%clk
0:00:47.5]} 35. c3 {[%clk 0:00:58.9]} 35... Be4 {[%clk 0:00:41.8]} 36. b4 {[%clk
0:00:56.2]} 36... cxb4 {[%clk 0:00:38.1]} 37. cxb4 {[%clk 0:00:55.9]} 37... d5
{[%clk 0:00:39]} 38. b5 {[%clk 0:00:52.4]} 38... d4+ {[%clk 0:00:39.1]} 39. Kd2
{[%clk 0:00:52.4]} 39... Rc7 {[%clk 0:00:38.7]} 40. Rb8 {[%clk 0:00:49.3]} 40...
Rc2+ {[%clk 0:00:34.1]} 41. Kd1 {[%clk 0:00:49.6]} 41... d3 {[%clk 0:00:34.1]}
42. a7 {[%clk 0:00:47.3]} 42... Ra2 {[%clk 0:00:31.1]} 43. b6 {[%clk 0:00:46.6]}
43... Kd4 {[%clk 0:00:31.1]} 44. b7 {[%clk 0:00:43.5]} 44... Ke3 {[%clk
0:00:28.4]} 45. a8=Q {[%clk 0:00:36.6]} 45... Rd2+ {[%clk 0:00:26.1]} 46. Kc1
{[%clk 0:00:36.1]} 46... Rc2+ {[%clk 0:00:26.1]} 47. Kb1 {[%clk 0:00:36.2]}
47... d2 {[%clk 0:00:25.5]} 48. Rd8 {[%clk 0:00:25.4]} 48... Rc1+ {[%clk
0:00:06.7]} 49. Kb2 {[%clk 0:00:24.1]} 49... Rb1+ {[%clk 0:00:06.9]} 50. Kc3
{[%clk 0:00:24.5]} 50... Rc1+ {[%clk 0:00:06.5]} 51. Kb4 {[%clk 0:00:24.6]}
51... Rb1+ {[%clk 0:00:06.6]} 52. Kc5 {[%clk 0:00:25.1]} 52... Rc1+ {[%clk
0:00:04]} 53. Kb6 {[%clk 0:00:25.1]} 53... Rb1+ {[%clk 0:00:04.5]} 54. Kc7
{[%clk 0:00:24.1]} 54... Rc1+ {[%clk 0:00:04.4]} 55. Kb8 {[%clk 0:00:24]} 55...
d1=Q {[%clk 0:00:02.6]} 56. Rxd1 {[%clk 0:00:22.9]} 56... Rxd1 {[%clk
0:00:03.5]} 57. Qa7+ {[%clk 0:00:21.7]} 57... Kf3 {[%clk 0:00:02.1]} 58. Kc7
{[%clk 0:00:21.7]} 58... Bxb7 {[%clk 0:00:01.3]} 59. Qxb7+ {[%clk 0:00:21.3]}
1-0

[Event "*** Titled Tuesday Blitz"]
[Site "Chess.com"]
[Date "2021.03.30"]
[Round "2"]
[White "Kislov_Oleg"]
[Black "tjychess"]
[Result "0-1"]
[WhiteElo "2477"]
[BlackElo "2683"]
[TimeControl "180+1"]
[EndTime "10:18:09 PDT"]
[Termination "tjychess won by resignation"]

1. e4 {[%clk 0:03:00.9]} 1... e5 {[%clk 0:03:00.1]} 2. Nf3 {[%clk 0:03:00.9]}
2... Nc6 {[%clk 0:03:00.6]} 3. d4 {[%clk 0:03:00.7]} 3... exd4 {[%clk
0:03:01.5]} 4. Nxd4 {[%clk 0:03:00.6]} 4... Nf6 {[%clk 0:03:01.9]} 5. Nc3 {[%clk
0:03:00.2]} 5... Bb4 {[%clk 0:03:01.9]} 6. Nxc6 {[%clk 0:02:59.4]} 6... bxc6
{[%clk 0:03:02.8]} 7. Bd3 {[%clk 0:02:59.5]} 7... O-O {[%clk 0:03:03.3]} 8. O-O
{[%clk 0:02:57]} 8... d5 {[%clk 0:03:03.6]} 9. exd5 {[%clk 0:02:56.8]} 9... cxd5
{[%clk 0:03:04.5]} 10. Bg5 {[%clk 0:02:56.3]} 10... c6 {[%clk 0:03:05]} 11. Qf3
{[%clk 0:02:56]} 11... Bd6 {[%clk 0:02:56.3]} 12. h3 {[%clk 0:02:45.4]} 12...
Rb8 {[%clk 0:02:55.8]} 13. Rab1 {[%clk 0:02:28.5]} 13... h6 {[%clk 0:02:39.6]}
14. Bxf6 {[%clk 0:02:21.9]} 14... Qxf6 {[%clk 0:02:40.5]} 15. Qxf6 {[%clk
0:02:21.9]} 15... gxf6 {[%clk 0:02:41.4]} 16. Ne2 {[%clk 0:02:18.4]} 16... Re8
{[%clk 0:02:35.9]} 17. Nd4 {[%clk 0:02:07.1]} 17... Bd7 {[%clk 0:02:34.2]} 18.
Nf5 {[%clk 0:02:03.1]} 18... Bf8 {[%clk 0:02:25.2]} 19. b3 {[%clk 0:01:57.2]}
19... Re5 {[%clk 0:02:16.2]} 20. g4 {[%clk 0:01:53.6]} 20... Rbe8 {[%clk
0:02:16.6]} 21. Kg2 {[%clk 0:01:48.6]} 21... c5 {[%clk 0:02:12.5]} 22. f4 {[%clk
0:01:36.9]} 22... R5e6 {[%clk 0:02:12]} 23. Kf2 {[%clk 0:01:25.3]} 23... a5
{[%clk 0:02:01.6]} 24. Rfe1 {[%clk 0:01:19]} 24... Bc6 {[%clk 0:01:46.2]} 25.
Ng3 {[%clk 0:01:12.2]} 25... Bd6 {[%clk 0:01:34.5]} 26. Nh5 {[%clk 0:01:04.2]}
26... Kf8 {[%clk 0:01:28.5]} 27. Bf5 {[%clk 0:00:57.5]} 27... Rxe1 {[%clk
0:01:24.5]} 28. Rxe1 {[%clk 0:00:58.4]} 28... Rxe1 {[%clk 0:01:24.4]} 29. Kxe1
{[%clk 0:00:59.3]} 29... Ke7 {[%clk 0:01:23.1]} 30. Kf2 {[%clk 0:00:55.2]} 30...
c4 {[%clk 0:01:21.2]} 31. Kf3 {[%clk 0:00:34.1]} 31... d4+ {[%clk 0:00:57.2]}
32. Ke2 {[%clk 0:00:14.7]} 32... Bd5 {[%clk 0:00:48.4]} 33. Kd2 {[%clk
0:00:06.3]} 33... Bb4+ {[%clk 0:00:44.2]} 34. Ke2 {[%clk 0:00:05.8]} 34... Bd6
{[%clk 0:00:42.6]} 35. Kd2 {[%clk 0:00:06.2]} 35... Bc7 {[%clk 0:00:16]} 36. a4
{[%clk 0:00:04.9]} 36... cxb3 {[%clk 0:00:15.4]} 37. cxb3 {[%clk 0:00:05.1]}
37... Bxb3 {[%clk 0:00:16.3]} 38. Kd3 {[%clk 0:00:05.7]} 38... Bb6 {[%clk
0:00:15.4]} 39. Ng3 {[%clk 0:00:04.9]} 39... Bxa4 {[%clk 0:00:15.5]} 40. Ne2
{[%clk 0:00:05.3]} 40... Bb5+ {[%clk 0:00:15.5]} 41. Kd2 {[%clk 0:00:05.7]}
41... Kd6 {[%clk 0:00:15.8]} 42. Bc2 {[%clk 0:00:05.7]} 42... a4 {[%clk
0:00:15.6]} 43. Bd3 {[%clk 0:00:05.6]} 43... Bxd3 {[%clk 0:00:13.6]} 44. Kxd3
{[%clk 0:00:06.5]} 44... a3 {[%clk 0:00:12.6]} 45. Nc1 {[%clk 0:00:07.4]} 45...
Kc5 {[%clk 0:00:12.5]} 46. Na2 {[%clk 0:00:07.7]} 46... Kb5 {[%clk 0:00:11.3]}
47. h4 {[%clk 0:00:08.2]} 47... Ka4 {[%clk 0:00:10.9]} 48. h5 {[%clk 0:00:08.7]}
48... Kb3 {[%clk 0:00:09.6]} 49. Nc1+ {[%clk 0:00:08.9]} 49... Kb2 {[%clk
0:00:09.7]} 50. g5 {[%clk 0:00:08.9]} 50... fxg5 {[%clk 0:00:09]} 51. fxg5
{[%clk 0:00:08.6]} 51... hxg5 {[%clk 0:00:09.4]} 52. h6 {[%clk 0:00:09.3]} 52...
Bd8 {[%clk 0:00:09.6]} 53. h7 {[%clk 0:00:09.7]} 53... Bf6 {[%clk 0:00:10.1]}
54. Ne2 {[%clk 0:00:10.1]} 54... a2 {[%clk 0:00:10]} 55. Ng3 {[%clk 0:00:11]}
55... a1=Q {[%clk 0:00:09.9]} 56. Ne4 {[%clk 0:00:11.9]} 56... Qb1+ {[%clk
0:00:10.4]} 0-1

[Event "*** Titled Tuesday Blitz"]
[Site "Chess.com"]
[Date "2021.03.30"]
[Round "2"]
[White "lucachess49"]
[Black "Kapibara_Warri0r"]
[Result "1/2-1/2"]
[WhiteElo "2430"]
[BlackElo "2234"]
[TimeControl "180+1"]
[EndTime "10:18:09 PDT"]
[Termination "Game drawn by repetition"]

1. d4 {[%clk 0:02:54.8]} 1... Nf6 {[%clk 0:02:58.6]} 2. c4 {[%clk 0:02:53.3]}
2... e6 {[%clk 0:02:58.8]} 3. Nc3 {[%clk 0:02:51.3]} 3... Bb4 {[%clk 0:02:58.4]}
4. e3 {[%clk 0:02:51.3]} 4... c5 {[%clk 0:02:57.7]} 5. Ne2 {[%clk 0:02:46.3]}
5... b6 {[%clk 0:02:54]} 6. a3 {[%clk 0:02:33]} 6... Bxc3+ {[%clk 0:02:49.2]} 7.
Nxc3 {[%clk 0:02:27.5]} 7... Bb7 {[%clk 0:02:50.1]} 8. d5 {[%clk 0:02:26.5]}
8... exd5 {[%clk 0:02:47.2]} 9. cxd5 {[%clk 0:02:22.1]} 9... d6 {[%clk
0:02:46.3]} 10. e4 {[%clk 0:01:41.2]} 10... Nbd7 {[%clk 0:02:44]} 11. Bf4 {[%clk
0:01:21.4]} 11... Ne5 {[%clk 0:02:39.1]} 12. Bb5+ {[%clk 0:01:19.4]} 12... Nfd7
{[%clk 0:02:31.1]} 13. Bxe5 {[%clk 0:01:04]} 13... dxe5 {[%clk 0:02:28]} 14. Qg4
{[%clk 0:01:04.5]} 14... Qe7 {[%clk 0:02:04.8]} 15. Bxd7+ {[%clk 0:00:21.4]}
15... Qxd7 {[%clk 0:02:03.1]} 16. Qxg7 {[%clk 0:00:21.9]} 16... O-O-O {[%clk
0:01:54.1]} 17. Qxe5 {[%clk 0:00:22.1]} 17... Rde8 {[%clk 0:01:51.5]} 18. Qf4
{[%clk 0:00:20.9]} 18... f5 {[%clk 0:01:33.7]} 19. O-O-O {[%clk 0:00:17.2]}
19... fxe4 {[%clk 0:01:30.7]} 20. Nxe4 {[%clk 0:00:17]} 20... Rhf8 {[%clk
0:01:18.5]} 21. Nf6 {[%clk 0:00:05.4]} 21... Qg7 {[%clk 0:00:49.5]} 22. Qf5+
{[%clk 0:00:05.1]} 22... Kb8 {[%clk 0:00:46.3]} 23. Nd7+ {[%clk 0:00:04.7]}
23... Ka8 {[%clk 0:00:42]} 24. Nxf8 {[%clk 0:00:04.7]} 24... Rxf8 {[%clk
0:00:41.2]} 25. Qe6 {[%clk 0:00:05.3]} 25... Bc8 {[%clk 0:00:33.4]} 26. Qc6+
{[%clk 0:00:04.1]} 26... Bb7 {[%clk 0:00:33.7]} 27. Qd6 {[%clk 0:00:04]} 27...
a6 {[%clk 0:00:28.2]} 28. Rd2 {[%clk 0:00:04.3]} 28... Qxg2 {[%clk 0:00:26.4]}
29. Rhd1 {[%clk 0:00:03.4]} 29... Rxf2 {[%clk 0:00:19.4]} 30. Qxb6 {[%clk
0:00:02.9]} 30... Rxd2 {[%clk 0:00:17.8]} 31. Rxd2 {[%clk 0:00:03.8]} 31... Qf1+
{[%clk 0:00:16.7]} 32. Kc2 {[%clk 0:00:03.9]} 32... Qf5+ {[%clk 0:00:16.9]} 33.
Kc1 {[%clk 0:00:03.6]} 33... Qf1+ {[%clk 0:00:16.9]} 34. Rd1 {[%clk 0:00:03.9]}
34... Qf4+ {[%clk 0:00:16.8]} 35. Kb1 {[%clk 0:00:04.5]} 35... Qe4+ {[%clk
0:00:16.5]} 36. Ka1 {[%clk 0:00:04.6]} 36... Qc2 {[%clk 0:00:15.5]} 37. Qd8+
{[%clk 0:00:04.3]} 37... Ka7 {[%clk 0:00:15.3]} 38. Re1 {[%clk 0:00:04.6]} 38...
Qd2 {[%clk 0:00:10.7]} 39. Re7 {[%clk 0:00:03.9]} 39... Qc1+ {[%clk 0:00:06.7]}
40. Ka2 {[%clk 0:00:03.7]} 40... Qc4+ {[%clk 0:00:07.3]} 41. Kb1 {[%clk
0:00:03.6]} 41... Qf1+ {[%clk 0:00:07.9]} 42. Kc2 {[%clk 0:00:03.6]} 42... Qf2+
{[%clk 0:00:08.2]} 43. Kc3 {[%clk 0:00:03.6]} 43... Qf3+ {[%clk 0:00:08.4]} 44.
Kc4 {[%clk 0:00:03.8]} 44... Qf4+ {[%clk 0:00:08.2]} 45. Kxc5 {[%clk 0:00:03.9]}
45... Qc1+ {[%clk 0:00:08.2]} 46. Kd6 {[%clk 0:00:04.2]} 46... Qf4+ {[%clk
0:00:08.6]} 47. Kd7 {[%clk 0:00:04.3]} 47... Qf5+ {[%clk 0:00:08.7]} 48. Ke8
{[%clk 0:00:04.4]} 48... Qg6+ {[%clk 0:00:08.7]} 49. Rf7 {[%clk 0:00:04.9]}
49... Qg8+ {[%clk 0:00:08.1]} 50. Ke7 {[%clk 0:00:04.5]} 50... Qg5+ {[%clk
0:00:08]} 51. Ke8 {[%clk 0:00:02.9]} 51... Qg8+ {[%clk 0:00:08]} 52. Rf8 {[%clk
0:00:02.3]} 52... Qg6+ {[%clk 0:00:07.4]} 53. Rf7 {[%clk 0:00:02.9]} 53... Qg8+
{[%clk 0:00:07.2]} 1/2-1/2